bitfinex/quotes_ETHUSD_20250703
["timestamp","ask_amount","ask_price","bid_price","bid_amount"]
[1751516805236,0.01,2572.2,2572.1,19.43035501]
[1751516805548,0.01,2572.2,2572.1,15.54248129]
[1751516807323,0.01,2572.2,2572.1,0.4249]
[1751516807650,0.01,2572.2,2572.1,8.2769]
[1751516808650,0.01,2572.2,2572.1,15.54148129]
[1751516809733,0.01,2572.2,2572.1,7.852]
[1751516810548,0.01,2572.2,2572.0,8.0456]
[1751516811137,0.01,2572.2,2572.0,7.852]
[1751516814948,0.7795,2572.1,2571.8,0.1944]
[1751516815151,0.1944,2572.0,2571.6,0.2144]
[1751516815454,0.1944,2572.0,2571.7,7.852]
[1751516817827,0.1944,2572.0,2571.6,0.2144]
[1751516818029,0.1944,2572.0,2571.6,15.32998129]
[1751516818837,0.01,2572.2,2571.8,7.26458129]
[1751516819038,0.2036,2572.2,2571.8,7.26458129]
[1751516820549,0.2036,2572.2,2571.8,7.49588129]
[1751516820869,0.2036,2572.2,2571.9,7.851]
[1751516828769,0.01,2572.2,2572.0,7.26458129]
[1751516828972,0.01,2572.2,2572.1,0.4249]
[1751516831195,0.01,2572.2,2572.1,4.31277372]
[1751516831384,0.01,2572.2,2572.1,0.4249]
[1751516833095,0.01,2572.2,2572.1,8.2759]
[1751516834405,0.01,2572.2,2572.1,12.16377372]
[1751516840573,0.01,2572.2,2572.1,0.4249]
[1751516840780,0.01,2572.2,2572.1,0.1936]
[1751516840980,0.01,2572.2,2572.1,8.0436]
[1751516842120,0.01,2572.2,2571.8,13.53782084]
[1751516842278,0.01,2572.2,2571.9,8.0444]
[1751516842604,0.01,2572.2,2571.9,0.1944]
[1751516842807,0.8173,2572.2,2572.0,7.85]
[1751516844406,0.01,2572.2,2572.0,7.85]
[1751516847421,0.01,2572.2,2572.0,15.11458129]
[1751516847913,0.01,2572.2,2572.0,15.30818129]
[1751516848112,0.01,2572.2,2572.0,7.45818129]
[1751516848412,0.01,2572.2,2572.1,7.85]
[1751516855086,0.01,2572.2,2572.1,11.73787372]
[1751516867204,0.01,2572.2,2572.1,13.29267318]
[1751516868658,0.01,2572.2,2572.1,13.52397318]
[1751516868949,0.01,2572.2,2572.1,13.52197318]
[1751516869517,0.01,2572.2,2572.1,12.51717372]
[1751516870243,0.01,2572.2,2572.1,22.51717372]
[1751516870448,0.01,2572.2,2572.1,24.84243205]
[1751516870954,0.01,2572.2,2572.1,22.51717372]
[1751516871170,0.01,2572.8,2572.2,10.0]
[1751516871446,0.01,2572.8,2572.7,21.15154828]
[1751516871646,0.01,2572.8,2572.7,17.848]
[1751516871822,0.01,2572.8,2572.7,23.28882909]
[1751516872420,0.01,2572.8,2572.7,21.73496699]
[1751516872948,0.01,2572.8,2572.7,8.14021309]
[1751516875144,0.01,2572.8,2572.7,12.02718008]
[1751516875550,0.01,2572.8,2572.7,7.55679438]
[1751516875752,0.01,2572.8,2572.7,8.13921309]
[1751516876252,0.01,2572.8,2572.7,0.29221309]
[1751516876451,0.01,2572.8,2572.7,7.848]
[1751516876663,0.01,2572.8,2572.5,7.26458129]
[1751516876823,0.01,2572.8,2572.6,7.85]
[1751516877426,0.01,2572.8,2572.3,8.81844339]
[1751516877626,0.01,2572.8,2572.4,7.851]
[1751516877922,0.01,2572.8,2572.2,3.6931621]
[1751516878132,0.824,2572.7,2572.1,1.5538621]
[1751516878341,0.824,2572.7,2571.8,5.79818684]
[1751516878342,0.824,2572.7,2571.9,1.5538621]
[1751516878674,0.824,2572.7,2571.7,1.5538621]
[1751516878675,10.824,2572.5,2571.7,1.5538621]
[1751516878970,0.824,2572.3,2571.8,7.859]
[1751516880434,0.824,2572.7,2571.9,4.11942037]
[1751516880632,0.824,2572.7,2572.0,15.12358129]
[1751516881255,0.1936,2572.6,2572.1,0.1936]
[1751516881855,0.8105,2572.5,2572.1,8.0546]
[1751516882227,0.8105,2572.5,2572.1,0.1936]
[1751516882547,0.811,2572.2,2572.0,7.861]
[1751516882747,0.811,2572.2,2571.8,8.0554]
[1751516886056,0.811,2572.2,2571.8,0.1944]
[1751516886357,0.811,2572.2,2571.8,8.0564]
[1751516887159,0.811,2572.2,2571.6,0.02]
[1751516887399,0.9635,2572.1,2571.7,0.1944]
[1751516887660,2.05985,2572.1,2571.7,0.1944]
[1751516891273,0.9635,2572.1,2571.7,0.1944]
[1751516893377,0.9635,2572.1,2571.7,7.45898129]
[1751516893765,0.9635,2572.1,2571.7,11.34744107]
[1751516893972,0.9635,2572.1,2571.7,7.45898129]
[1751516894576,0.7699,2572.1,2571.9,0.1944]
[1751516898186,0.7699,2572.1,2571.7,0.1944]
[1751516905682,0.7699,2572.1,2571.6,0.02]
[1751516905860,0.7623,2571.7,2571.6,0.02]
[1751516907200,0.9567,2571.7,2571.6,0.02]
[1751516907617,0.1944,2571.7,2571.6,0.02]
[1751516907903,0.9664,2571.7,2571.6,0.02]
[1751516915801,2.8784,2571.7,2571.6,0.02]
[1751516916271,4.95174,2571.7,2571.6,0.02]
[1751516938330,0.1944,2571.7,2571.6,0.02]
[1751516938530,9.9564,2571.7,2571.6,0.02]
[1751516938734,2.8893,2571.7,2571.6,0.02]
[1751516940003,2.1034,2571.7,2571.6,0.02]
[1751516946910,0.1944,2571.7,2571.6,0.02]
[1751516947131,9.9564,2571.7,2571.6,0.02]
[1751516947310,0.1944,2571.7,2571.6,0.02]
[1751516947509,9.9564,2571.7,2571.6,0.02]
[1751516947710,1.909,2571.7,2571.6,0.2513]
[1751516947922,1.909,2571.7,2571.6,7.51588129]
[1751516949637,1.909,2571.7,2571.6,0.2513]
[1751516949843,1.909,2571.7,2571.6,0.02]
[1751516954335,2.98342,2571.7,2571.6,0.02]
[1751516958348,1.909,2571.7,2571.6,0.02]
[1751516962922,13.52933718,2571.7,2571.6,0.02]
[1751516964754,21.38133718,2571.7,2571.6,0.02]
[1751516965938,19.761,2571.7,2571.6,0.02]
[1751516967428,20.60732949,2571.7,2571.6,0.02]
[1751516968120,22.76491244,2571.7,2571.6,0.02]
[1751516968833,23.56851244,2571.7,2571.6,0.02]
[1751516969057,22.76491244,2571.7,2571.6,0.02]
[1751516969556,3.00391244,2571.7,2571.6,0.02]
[1751516969730,9.761,2571.7,2571.6,0.02]
[1751516975965,0.1944,2571.8,2571.6,0.2513]
[1751516976127,9.761,2571.8,2571.6,7.51588129]
[1751516978055,1.909,2571.8,2571.6,7.51588129]
[1751516978254,0.1944,2571.9,2571.6,7.51588129]
[1751516978557,9.9554,2571.9,2571.6,7.51588129]
[1751516981559,0.1944,2571.9,2571.6,7.28458129]
[1751516981764,0.1944,2571.9,2571.7,0.2313]
[1751516988264,1.909,2572.1,2571.8,7.26458129]
[1751516988762,1.909,2572.1,2571.8,7.45898129]
[1751516994354,12.1126,2572.2,2571.8,0.1944]
[1751516997077,12.1126,2572.2,2571.8,7.45898129]
[1751516999848,10.2036,2572.2,2571.8,7.45898129]
[1751517002678,0.2036,2572.2,2572.1,0.2313]
[1751517002876,0.01,2572.2,2572.1,0.4249]
[1751517003457,0.01,2572.2,2572.1,4.31277372]
[1751517003878,0.01,2572.2,2572.1,0.4249]
[1751517005094,0.01,2572.2,2572.1,4.31277372]
[1751517005590,0.01,2572.2,2572.1,0.4249]
[1751517006896,0.01,2572.2,2572.1,0.2313]
[1751517007547,0.01,2572.2,2572.0,7.26458129]
[1751517007754,0.01,2572.2,2571.9,0.2313]
[1751517015390,0.01,2572.2,2572.0,7.26458129]
[1751517016194,0.01,2572.2,2571.9,7.49588129]
[1751517016658,0.01,2572.2,2571.9,7.69028129]
[1751517019437,0.01,2572.2,2571.9,7.45898129]
[1751517021281,0.01,2572.2,2571.9,7.47898129]
[1751517029302,0.01,2572.2,2571.9,0.2144]
[1751517029698,0.01,2572.2,2571.9,0.02]
[1751517029903,0.7727,2572.1,2571.9,0.02]
[1751517030414,0.2036,2572.2,2571.9,7.28458129]
[1751517030724,0.01,2572.2,2572.1,7.26458129]
[1751517031098,0.01,2572.2,2572.1,11.57735501]
[1751517032098,0.01,2572.2,2572.1,11.87208398]
[1751517033411,0.01,2572.2,2572.1,19.72308398]
[1751517033609,0.01,2572.2,2572.1,15.83521026]
[1751517038030,0.01,2572.2,2572.1,19.72308398]
[1751517038614,0.01,2572.2,2572.1,15.83521026]
[1751517039234,0.01,2572.2,2572.1,19.72308398]
[1751517039713,0.01,2572.2,2572.1,15.83521026]
[1751517040929,0.01,2572.2,2571.9,0.02]
[1751517041111,0.01,2572.2,2572.0,0.1936]
[1751517041722,0.802,2572.0,2571.9,0.02]
[1751517050064,10.802,2572.0,2571.9,0.02]
[1751517050242,2.27199461,2572.0,2571.9,0.02]
[1751517051417,0.802,2572.0,2571.9,0.02]
[1751517052442,10.802,2572.0,2571.9,0.02]
[1751517053244,14.69002488,2572.0,2571.9,0.02]
[1751517053552,10.802,2572.0,2571.9,0.02]
[1751517054337,14.69002488,2572.0,2571.9,0.02]
[1751517054539,18.90441041,2572.0,2571.9,0.02]
[1751517060150,5.18857605,2571.9,2571.6,0.02]
[1751517060361,10.7642,2571.7,2571.6,0.02]
[1751517061142,14.65267843,2571.7,2571.6,0.02]
[1751517061472,14.37574605,2571.7,2571.6,0.02]
[1751517062447,18.26422448,2571.7,2571.6,0.02]
[1751517062762,14.37574605,2571.7,2571.6,0.02]
[1751517064764,18.26422448,2571.7,2571.6,0.02]
[1751517070271,19.10983533,2571.7,2571.6,0.02]
[1751517074865,15.2213569,2571.7,2571.6,0.02]
[1751517077868,20.60761085,2571.7,2571.6,0.02]
[1751517078073,12.75448685,2571.7,2571.6,0.02]
[1751517078259,19.762,2571.7,2571.6,0.02]
[1751517078441,20.60783461,2571.7,2571.6,0.02]
[1751517085066,21.38373461,2571.7,2571.6,0.02]
[1751517085382,27.4105865,2571.7,2571.6,0.02]
[1751517087982,27.9605865,2571.7,2571.6,0.02]
[1751517089949,3.88893209,2571.4,2571.3,1e-08]
[1751517090176,3.88893209,2571.4,2570.7,0.02]
[1751517090177,14.65508843,2570.9,2570.7,0.02]
[1751517090493,43.79596689,2570.9,2570.7,0.02]
[1751517095270,34.01996689,2570.9,2570.7,0.02]
[1751517095475,44.35196689,2570.9,2570.7,0.02]
[1751517105297,24.78169717,2570.9,2570.7,0.02]
[1751517105463,31.87629717,2570.9,2570.7,0.02]
[1751517105771,10.19083461,2570.9,2570.7,0.02]
[1751517105978,12.10683461,2570.9,2570.7,0.02]
[1751517106182,11.261,2570.9,2570.8,0.2913]
[1751517107472,19.128,2570.9,2570.8,0.2913]
[1751517108195,11.261,2570.9,2570.8,0.2913]
[1751517108383,19.128,2570.9,2570.8,0.2913]
[1751517108585,11.261,2570.9,2570.8,0.2913]
[1751517108772,19.127,2570.9,2570.8,0.2913]
[1751517109287,11.261,2570.9,2570.8,0.2913]
[1751517109479,19.127,2570.9,2570.8,0.2913]
[1751517109677,11.261,2570.9,2570.8,0.2913]
[1751517109984,11.4554,2570.9,2570.8,0.2913]
[1751517111697,9.5394,2570.9,2570.8,0.2913]
[1751517111871,9.345,2570.9,2570.8,0.2913]
[1751517113264,9.345,2570.9,2570.8,0.4857]
[1751517115793,9.345,2570.9,2570.8,0.2913]
[1751517116777,9.5394,2570.9,2570.8,0.2913]
[1751517120136,9.5394,2570.9,2570.8,0.02]
[1751517122808,0.1944,2570.9,2570.8,0.02]
[1751517123013,0.01,2571.0,2570.8,0.02]
[1751517123014,0.01,2571.0,2570.9,4.16098843]
[1751517124698,0.01,2571.0,2570.9,5.00138976]
[1751517133009,0.01,2571.0,2570.9,5.19578976]
[1751517138137,0.01,2571.0,2570.9,19.91578976]
[1751517138507,0.01,2571.0,2570.9,27.78178976]
[1751517140333,0.01,2571.0,2570.9,19.91578976]
[1751517140520,0.01,2571.0,2570.9,27.78278976]
[1751517142229,0.01,2571.0,2570.9,19.91578976]
[1751517142432,0.01,2571.0,2570.9,27.78978976]
[1751517143638,0.01,2571.0,2570.9,19.91578976]
[1751517143927,0.01,2571.0,2570.9,27.79078976]
[1751517145441,0.01,2571.0,2570.9,19.91578976]
[1751517145941,0.01,2571.0,2570.9,27.78878976]
[1751517148008,0.01,2571.0,2570.9,27.78778976]
[1751517148208,0.01,2571.0,2570.9,35.05237105]
[1751517148907,0.01,2571.0,2570.9,35.07237105]
[1751517149238,0.01,2571.0,2570.9,30.35237105]
[1751517150737,0.01,2571.0,2570.9,30.54334729]
[1751517151318,0.01,2571.0,2570.9,32.87414044]
[1751517151521,0.01,2571.0,2570.9,32.6831642]
[1751517151720,0.01,2571.0,2570.9,32.6901642]
[1751517151910,0.01,2571.0,2570.9,23.09478976]
[1751517152111,0.01,2571.0,2570.9,30.35937105]
[1751517152639,0.01,2571.0,2570.9,32.6901642]
[1751517153220,0.01,2571.0,2570.9,30.35937105]
[1751517153622,0.01,2571.0,2570.9,22.48037105]
[1751517153830,0.01,2571.0,2570.9,30.36037105]
[1751517154234,0.01,2571.0,2570.9,32.6911642]
[1751517156550,0.01,2571.0,2570.9,30.36037105]
[1751517160532,0.01,2571.0,2570.9,32.41443454]
[1751517162017,0.01,2571.0,2570.9,32.41743454]
[1751517163926,0.01,2571.0,2570.9,24.53643454]
[1751517164259,0.01,2571.0,2570.9,32.41643454]
[1751517165245,0.01,2571.0,2570.9,2.83216482]
[1751517165444,0.01,2571.0,2570.9,0.2144]
[1751517165652,0.01,2571.0,2570.9,8.0944]
[1751517165852,0.01,2571.0,2570.9,0.2144]
[1751517166028,0.01,2571.0,2570.9,8.0944]
[1751517167029,0.8142,2571.0,2570.9,8.0944]
[1751517168161,0.8142,2571.0,2570.9,0.2144]
[1751517168458,0.8142,2571.0,2570.9,8.0944]
[1751517169861,0.8142,2571.0,2570.9,0.2144]
[1751517170226,0.8142,2571.0,2570.9,8.0934]
[1751517172863,0.8142,2571.0,2570.9,0.2144]
[1751517173168,0.8142,2571.0,2570.9,8.0914]
[1751517173330,0.8142,2571.0,2570.9,0.2144]
[1751517173535,0.8142,2571.0,2570.9,7.897]
[1751517177455,0.8142,2571.0,2570.9,0.02]
[1751517177648,0.8142,2571.0,2570.9,7.894]
[1751517179438,0.8142,2571.0,2570.9,8.0884]
[1751517180473,0.01,2571.0,2570.9,0.2144]
[1751517180675,0.01,2571.0,2570.9,0.02]
[1751517181176,0.7831,2571.0,2570.9,0.02]
[1751517189757,0.9775,2571.0,2570.9,0.02]
[1751517195492,2.07525,2571.0,2570.9,0.02]
[1751517199372,0.9775,2571.0,2570.9,0.02]
[1751517204922,0.2044,2571.0,2570.9,0.02]
[1751517206320,0.01,2571.0,2570.9,0.02]
[1751517219154,0.01,2571.0,2570.9,0.2913]
[1751517220844,0.01,2571.0,2570.9,0.02]
[1751517234099,0.01,2571.0,2570.9,0.4857]
[1751517234555,0.01,2571.0,2570.9,0.2144]
[1751517239794,0.01,2571.0,2570.9,0.02]
[1751517242167,0.01,2571.0,2570.9,8.10588129]
[1751517242374,0.01,2571.0,2570.9,11.99556972]
[1751517243310,0.01,2571.0,2570.9,0.02]
[1751517244711,0.01,2571.0,2570.9,3.90968843]
[1751517244910,0.01,2571.0,2570.9,4.45968843]
[1751517246106,0.01,2571.0,2570.9,3.90968843]
[1751517247922,0.01,2571.0,2570.9,14.73098843]
[1751517248620,0.01,2571.0,2570.9,17.05835192]
[1751517249117,0.01,2571.0,2570.9,14.73098843]
[1751517252330,0.01,2571.0,2570.9,14.92538843]
[1751517255613,0.01,2571.0,2570.9,22.51608843]
[1751517256900,0.01,2571.0,2570.9,21.96608843]
[1751517257103,0.01,2571.0,2570.9,14.10408843]
[1751517257332,0.01,2571.0,2570.9,21.96708843]
[1751517258003,0.01,2571.0,2570.9,0.2144]
[1751517258204,0.01,2571.0,2570.9,8.0764]
[1751517258403,0.01,2571.0,2570.9,0.2144]
[1751517258730,0.01,2571.0,2570.9,8.0774]
[1751517259496,0.01,2571.0,2570.9,0.2144]
[1751517259696,0.01,2571.0,2570.9,8.0774]
[1751517262606,0.8016,2571.0,2570.9,7.881]
[1751517263208,0.8016,2571.0,2570.9,0.02]
[1751517268110,1.0928,2571.0,2570.9,0.02]
[1751517280449,1.927,2571.0,2570.9,0.02]
[1751517280635,2.1214,2571.0,2570.9,0.02]
[1751517280830,1.927,2571.0,2570.9,0.02]
[1751517283665,0.01,2571.0,2570.9,0.02]
[1751517285758,0.01,2571.0,2570.9,0.2913]
[1751517286160,0.01,2571.0,2570.9,10.8413]
[1751517289386,0.01,2571.0,2570.9,18.7093]
[1751517294106,1.916,2571.8,2571.6,7.26458129]
[1751517294661,1.916,2571.8,2571.5,0.1944]
[1751517294971,0.7761,2571.7,2571.3,7.871]
[1751517295177,0.7761,2571.7,2571.3,8.0654]
[1751517297390,0.7761,2571.7,2571.4,7.26458129]
[1751517299567,0.7761,2571.7,2571.3,0.1944]
[1751517302181,0.7761,2571.7,2571.4,7.26458129]
[1751517302530,1.916,2571.8,2571.6,7.26458129]
[1751517302819,2.7229,2571.9,2571.6,7.26458129]
[1751517304709,1.926,2571.9,2571.6,7.26458129]
[1751517304912,1.926,2571.9,2571.8,7.26458129]
[1751517305086,1.926,2571.9,2571.8,7.45898129]
[1751517305507,1.926,2571.9,2571.8,0.1944]
[1751517305878,2.7294,2571.9,2571.8,0.1944]
[1751517306181,2.7294,2571.9,2571.6,0.1944]
[1751517306987,2.7294,2571.9,2571.4,10.0]
[1751517307324,2.9238,2571.9,2571.4,10.1944]
[1751517310038,0.8088,2571.8,2571.3,10.0]
[1751517310337,1.0032,2571.8,2571.3,0.1944]
[1751517316106,0.8088,2571.8,2571.0,0.02]
[1751517316311,0.1944,2571.4,2571.0,0.02]
[1751517316509,0.7518,2571.3,2571.0,0.02]
[1751517316813,0.7675,2571.1,2571.0,0.02]
[1751517332840,2.1094,2571.2,2571.0,0.02]
[1751517333051,2.1104,2571.2,2571.0,0.02]
[1751517333231,0.1944,2571.2,2571.0,0.02]
[1751517333431,1.916,2571.3,2571.1,7.26458129]
[1751517333636,2.1104,2571.3,2571.1,7.26458129]
[1751517335126,0.1944,2571.3,2571.2,10.2713]
[1751517335331,0.01,2571.7,2571.2,10.2713]
[1751517335626,0.01,2571.7,2571.5,7.26458129]
[1751517337659,0.7631,2571.7,2571.2,7.53588129]
[1751517337857,0.7631,2571.7,2571.3,10.0]
[1751517339052,0.7631,2571.7,2571.2,7.26458129]
[1751517345365,0.1944,2571.6,2571.2,7.26458129]
[1751517345568,0.01,2571.7,2571.4,11.15348136]
[1751517345775,0.01,2571.7,2571.6,7.26458129]
[1751517349460,0.01,2571.7,2571.4,7.53588129]
[1751517349674,0.01,2571.7,2571.3,7.864]
[1751517350686,0.01,2571.7,2571.4,7.26458129]
[1751517354498,0.01,2571.7,2571.6,7.26458129]
[1751517360192,0.0252804,2571.7,2571.6,7.26458129]
[1751517360766,0.0252804,2571.7,2571.4,7.45898129]
[1751517360991,0.0252804,2571.7,2571.4,15.31798129]
[1751517365979,0.0252804,2571.7,2571.4,7.45898129]
[1751517366182,0.8154,2571.6,2571.4,15.31698129]
[1751517366881,0.8154,2571.6,2571.4,15.12258129]
[1751517367204,0.8306804,2571.6,2571.4,15.12258129]
[1751517367507,0.8306804,2571.6,2571.4,10.0]
[1751517367711,0.0152804,2571.6,2571.5,8.1293]
[1751517367924,0.0152804,2571.6,2571.5,29.28266215]
[1751517369502,0.0152804,2571.6,2571.5,29.83266215]
[1751517370210,0.0152804,2571.6,2571.5,32.16002564]
[1751517371312,0.0152804,2571.6,2571.5,29.28266215]
[1751517373382,0.0152804,2571.6,2571.5,29.01136215]
[1751517376218,0.0152804,2571.6,2571.5,29.83266215]
[1751517377223,0.0152804,2571.6,2571.5,32.16002564]
[1751517377423,0.0152804,2571.6,2571.5,29.83266215]
[1751517377789,0.0152804,2571.6,2571.5,30.02706215]
[1751517384434,0.01,2571.9,2571.7,4.1597529]
[1751517384616,0.01,2572.1,2571.6,13.88862964]
[1751517384617,0.01,2572.2,2572.0,10.55]
[1751517384799,0.01,2572.2,2572.1,29.28975501]
[1751517385142,0.01,2572.2,2572.1,29.48335501]
[1751517385312,0.01,2572.2,2572.1,21.61735501]
[1751517385518,0.01,2572.2,2572.1,29.21205501]
[1751517389024,0.8377,2572.7,2572.1,29.21205501]
[1751517389025,0.01,2572.7,2572.6,3.88711809]
[1751517389356,0.01,2572.7,2572.6,11.94371809]
[1751517390225,0.01,2572.7,2572.6,8.0566]
[1751517391163,0.01,2572.7,2572.6,22.21501809]
[1751517392643,0.01,2572.8,2572.7,13.88696699]
[1751517392834,0.01,2572.8,2572.7,21.15154828]
[1751517393033,0.01,2572.8,2572.7,21.34514828]
[1751517396071,0.01,2572.8,2572.7,17.45818129]
[1751517396370,0.01,2572.8,2572.7,21.34514828]
[1751517396566,0.01,2572.8,2572.7,21.64166464]
[1751517397668,0.01,2572.8,2572.7,17.75469765]
[1751517397855,0.01,2572.8,2572.7,21.64166464]
[1751517400670,0.01,2572.8,2572.7,15.32118129]
[1751517401583,0.01,2572.8,2572.7,19.20814828]
[1751517401882,0.01,2572.8,2572.7,29.47944828]
[1751517402081,0.01,2573.0,2572.9,13.88666485]
[1751517402289,0.01,2573.0,2572.9,29.01724614]
[1751517402491,0.210633,2573.1,2573.0,14.15781379]
[1751517402787,0.210633,2573.1,2573.0,14.70781379]
[1751517403092,0.01,2573.5,2573.1,0.55]
[1751517403404,0.01,2573.5,2573.4,4.07950969]
[1751517403611,0.01,2573.5,2573.4,22.22280969]
[1751517404261,0.01,2573.5,2573.4,22.77280969]
[1751517404463,0.7944,2574.0,2573.5,0.55]
[1751517404659,0.7944,2574.0,2573.9,7.26458129]
[1751517404860,0.7944,2574.0,2573.9,15.13958129]
[1751517405297,0.7681,2574.3,2573.9,15.13958129]
[1751517405458,0.9617,2574.3,2574.1,7.26458129]
[1751517406504,0.9617,2574.3,2574.0,7.875]
[1751517406658,0.7681,2574.3,2574.0,7.875]
[1751517406865,0.1936,2574.1,2574.0,7.875]
[1751517407282,0.1936,2574.1,2573.9,15.13758129]
[1751517407965,0.1936,2574.1,2573.9,15.14058129]
[1751517408478,0.1936,2574.1,2573.9,7.26458129]
[1751517408673,0.1936,2574.1,2573.9,15.14058129]
[1751517409696,0.1936,2574.1,2573.6,0.1936]
[1751517409697,0.7658,2574.0,2573.6,0.1936]
[1751517409896,0.1936,2573.9,2573.6,7.878]
[1751517410097,0.1936,2573.9,2573.5,15.33618129]
[1751517410298,0.7658,2573.8,2573.5,0.1936]
[1751517410470,0.1936,2573.7,2573.3,8.0726]
[1751517410670,0.1936,2573.7,2573.4,7.26458129]
[1751517412103,0.1936,2573.7,2573.5,0.02]
[1751517414401,0.7867,2573.6,2573.5,0.02]
[1751517422122,1.65277,2573.6,2573.5,0.02]
[1751517422329,0.7867,2573.6,2573.5,0.02]
[1751517424237,0.7967,2573.6,2573.5,0.02]
[1751517425999,0.2036,2573.6,2573.5,0.02]
[1751517426903,0.01,2573.6,2573.5,0.02]
[1751517429130,0.7749,2573.6,2573.5,0.02]
[1751517429334,0.9685,2573.6,2573.5,0.02]
[1751517431834,0.2036,2573.6,2573.5,0.02]
[1751517432936,3.8945966,2574.3,2573.5,0.02]
[1751517432937,0.2031271,2575.3,2573.6,0.2713]
[1751517433124,0.1936,2575.0,2574.9,7.26458129]
[1751517434308,0.8265,2575.2,2574.9,7.26458129]
[1751517434309,1.923,2575.3,2574.9,7.26458129]
[1751517434634,2.1166,2575.3,2575.2,7.26458129]
[1751517434809,0.9521,2575.5,2575.2,7.26458129]
[1751517435214,3.1071311,2577.3,2575.5,0.55]
[1751517435408,0.7585,2577.4,2575.4,10.2713]
[1751517435409,0.1936,2576.8,2576.6,7.26458129]
[1751517435613,0.1936,2576.8,2576.3,0.1936]
[1751517435854,10.0,2576.6,2575.6,0.1936]
[1751517436067,0.1936,2575.9,2575.2,10.0]
[1751517436235,0.1936,2575.9,2575.1,11.56720969]
[1751517436236,1.993,2575.9,2575.1,11.56720969]
[1751517436433,1.993,2575.9,2575.2,10.0]
[1751517436635,0.1936,2575.6,2575.2,10.0]
[1751517436821,0.1936,2575.6,2575.1,8.2476]
[1751517437024,0.1936,2575.6,2575.1,0.1936]
[1751517437458,0.1936,2575.6,2575.1,10.1936]
[1751517437666,0.1936,2575.6,2575.1,0.1936]
[1751517437875,0.7553,2575.7,2574.6,8.055]
[1751517437876,10.7553,2575.7,2574.6,8.055]
[1751517438170,0.1936,2575.2,2574.8,0.1936]
[1751517439954,1.993,2575.3,2574.3,8.05]
[1751517440260,0.1936,2574.8,2574.3,8.53807369]
[1751517440664,0.8214,2575.0,2574.4,10.0]
[1751517440958,0.8214,2575.0,2574.6,0.1936]
[1751517440959,1.015,2575.0,2574.6,0.1936]
[1751517442961,0.1936,2574.9,2574.4,10.1936]
[1751517445765,0.1936,2574.9,2574.4,0.1936]
[1751517445965,0.8214,2575.0,2574.1,8.3163]
[1751517446158,0.1936,2574.7,2574.2,0.1936]
[1751517446355,2.1866,2574.7,2574.2,0.1936]
[1751517446555,2.40526,2574.7,2574.2,0.1936]
[1751517447773,2.40526,2574.7,2574.4,0.02]
[1751517452888,2.21166,2574.7,2574.4,0.02]
[1751517453178,0.7965,2574.6,2574.4,0.02]
[1751517454358,4.68070758,2574.6,2574.4,0.02]
[1751517454553,1.07763273,2574.5,2574.4,0.02]
[1751517455360,4.96188209,2574.5,2574.4,0.02]
[1751517455565,1.07763273,2574.5,2574.4,0.02]
[1751517460190,1.993,2574.5,2574.4,0.02]
[1751517460378,10.0,2575.3,2574.5,0.2713]
[1751517460379,1.993,2575.3,2574.5,0.2713]
[1751517460576,0.1936,2574.9,2574.5,0.2713]
[1751517463265,1.993,2574.9,2574.7,0.1936]
[1751517464195,0.1936,2575.1,2574.7,0.1936]
[1751517464492,3.48669331,2575.6,2574.6,0.55]
[1751517464692,0.1936,2575.3,2574.8,0.1936]
[1751517468112,0.82,2575.4,2574.5,11.42382633]
[1751517468301,0.82,2575.4,2574.6,0.1936]
[1751517468302,0.1936,2575.1,2574.6,0.1936]
[1751517469389,0.1936,2575.1,2574.6,0.7436]
[1751517471185,0.1936,2575.1,2574.6,0.1936]
[1751517473692,0.9876,2575.1,2574.6,0.1936]
[1751517474318,1.28546,2575.1,2574.6,0.1936]
[1751517476126,0.9876,2575.1,2574.6,0.1936]
[1751517476622,1.991,2575.2,2574.9,0.1936]
[1751517476793,0.1936,2575.3,2574.9,0.1936]
[1751517476994,1.991,2575.2,2574.9,0.1936]
[1751517479902,0.1936,2575.3,2574.9,0.1936]
[1751517480105,1.991,2575.2,2574.9,0.1936]
[1751517480504,0.1936,2575.3,2574.9,0.1936]
[1751517480708,1.991,2575.2,2575.0,0.1936]
[1751517481108,1.991,2575.2,2574.5,11.44382633]
[1751517481109,2.26989,2575.2,2574.5,11.44382633]
[1751517481300,2.46349,2575.2,2574.7,0.1936]
[1751517482797,2.26989,2575.2,2574.5,0.2913]
[1751517483024,0.1936,2575.0,2574.5,0.2136]
[1751517488441,0.1936,2575.0,2574.5,1.36612633]
[1751517490430,0.1936,2575.0,2574.6,1.15252633]
[1751517502568,0.8306,2574.9,2574.6,1.15252633]
[1751517503360,0.1936,2575.0,2574.6,1.15252633]
[1751517503668,0.8306,2575.1,2574.7,7.24619723]
[1751517503831,0.7519,2575.4,2575.0,0.55]
[1751517504032,0.01,2575.6,2575.2,7.51749723]
[1751517504261,0.01,2575.6,2575.3,0.1936]
[1751517508570,0.826,2575.5,2575.0,1.15665523]
[1751517508888,3.88275094,2575.5,2574.9,1.15665523]
[1751517509046,0.1936,2575.2,2574.9,1.15665523]